[Event "Titled Tuesday Blitz February 28 Late 2023"]
[White "Burke, Paul"]
[Black "Sanchez, Robert"]
[WhiteFideId "2605767"]
[BlackFideId "2034360"]
[WhiteElo "1903"]
[BlackElo "2369"]
[Result "1-0"]
[Round "11"]
[TimeControl "180+2"]
[Date "2023.02.28"]
[WhiteClock "0:00:04"]
[BlackClock "0:01:00"]

1. e4 {[%clk 0:03:00]}  e5 {[%clk 0:02:56]} 2. Nf3 {[%clk 0:02:59]}  Nc6 {[%clk 0:02:56]} 3. Bc4 {[%clk 0:02:59]}  Nf6 {[%clk 0:02:55]} 4. d4 {[%clk 0:02:58]}  exd4 {[%clk 0:02:55]} 5. O-O {[%clk 0:02:59]}  Be7 {[%clk 0:02:54]} 6. e5 {[%clk 0:02:57]}  Ne4 {[%clk 0:02:55]} 7. Bd5 {[%clk 0:02:56]}  Nc5 {[%clk 0:02:55]} 8. c3 {[%clk 0:02:52]}  dxc3 {[%clk 0:02:53]} 9. Nxc3 {[%clk 0:02:48]}  O-O {[%clk 0:02:51]} 10. Be3 {[%clk 0:02:41]}  Ne6 {[%clk 0:02:47]} 11. Be4 {[%clk 0:02:31]}  d6 {[%clk 0:02:45]} 12. Qc2 {[%clk 0:02:09]}  Nxe5 {[%clk 0:02:35]} 13. Nxe5 {[%clk 0:02:05]}  dxe5 {[%clk 0:02:35]} 14. Bxh7+ {[%clk 0:02:05]}  Kh8 {[%clk 0:02:35]} 15. Bf5 {[%clk 0:02:00]}  Nd4 {[%clk 0:02:33]} 16. Bxd4 {[%clk 0:01:58]}  exd4 {[%clk 0:02:33]} 17. Bxc8 {[%clk 0:01:50]}  dxc3 {[%clk 0:02:27]} 18. Bf5 {[%clk 0:01:23]}  g6 {[%clk 0:02:25]} 19. Be4 {[%clk 0:01:20]}  cxb2 {[%clk 0:02:23]} 20. Rad1 {[%clk 0:01:03]}  Bd6 {[%clk 0:02:21]} 21. Qxb2+ {[%clk 0:00:59]}  Kg8 {[%clk 0:02:21]} 22. Qxb7 {[%clk 0:00:54]}  Rb8 {[%clk 0:02:17]} 23. Qd5 {[%clk 0:00:47]}  Qf6 {[%clk 0:02:13]} 24. Bf3 {[%clk 0:00:35]}  Rbd8 {[%clk 0:02:06]} 25. Qe4 {[%clk 0:00:34]}  Rfe8 {[%clk 0:02:04]} 26. Qg4 {[%clk 0:00:33]}  Kg7 {[%clk 0:02:04]} 27. h4 {[%clk 0:00:28]}  Rh8 {[%clk 0:01:55]} 28. g3 {[%clk 0:00:27]}  Rh5 {[%clk 0:01:47]} 29. Kg2 {[%clk 0:00:20]}  Ra5 {[%clk 0:01:43]} 30. a4 {[%clk 0:00:15]}  Rb8 {[%clk 0:01:34]} 31. Bc6 {[%clk 0:00:13]}  Rb4 {[%clk 0:01:30]} 32. Qf3 {[%clk 0:00:11]}  Qxf3+ {[%clk 0:01:26]} 33. Kxf3 {[%clk 0:00:10]}  Rc4 {[%clk 0:01:23]} 34. Bb5 {[%clk 0:00:08]}  Rc3+ {[%clk 0:01:22]} 35. Kg2 {[%clk 0:00:08]}  a6 {[%clk 0:01:16]} 36. Be8 {[%clk 0:00:05]}  Kf8 {[%clk 0:01:10]} 37. Bd7 {[%clk 0:00:04]}  Rac5 {[%clk 0:01:00]} 1-0


[Site "https://www.chess.com"]